[Event "Titled Tuesday Blitz January 10 Early 2023"]
[White "Vargas, Mauricio"]
[Black "Mohammadian, Mohammad"]
[WhiteFideId "4404572"]
[BlackFideId "12566055"]
[WhiteElo "2035"]
[BlackElo "1398"]
[Result "0-1"]
[Round "08"]
[TimeControl "180+2"]
[Date "2023.01.10"]
[WhiteClock "0:00:02"]
[BlackClock "0:00:21"]

1. e3 {[%clk 0:02:59]}  e5 {[%clk 0:02:58]} 2. Nc3 {[%clk 0:02:50]}  d5 {[%clk 0:02:55]} 3. g3 {[%clk 0:02:43]}  Nc6 {[%clk 0:02:54]} 4. Bg2 {[%clk 0:02:43]}  Be6 {[%clk 0:02:52]} 5. b3 {[%clk 0:02:43]}  Nf6 {[%clk 0:02:51]} 6. Bb2 {[%clk 0:02:43]}  a6 {[%clk 0:02:48]} 7. d3 {[%clk 0:02:43]}  Bd6 {[%clk 0:02:48]} 8. Nf3 {[%clk 0:02:36]}  h6 {[%clk 0:02:45]} 9. Ne2 {[%clk 0:02:35]}  Qe7 {[%clk 0:02:42]} 10. O-O {[%clk 0:02:32]}  O-O {[%clk 0:02:37]} 11. a3 {[%clk 0:02:32]}  Qd7 {[%clk 0:02:32]} 12. c4 {[%clk 0:02:28]}  dxc4 {[%clk 0:02:25]} 13. bxc4 {[%clk 0:02:21]}  Bh3 {[%clk 0:02:24]} 14. Qc2 {[%clk 0:02:16]}  Bxg2 {[%clk 0:02:23]} 15. Kxg2 {[%clk 0:02:15]}  Qg4 {[%clk 0:02:12]} 16. c5 {[%clk 0:02:11]}  Be7 {[%clk 0:01:48]} 17. Nxe5 {[%clk 0:02:09]}  Nxe5 {[%clk 0:01:41]} 18. Bxe5 {[%clk 0:02:08]}  c6 {[%clk 0:01:40]} 19. f3 {[%clk 0:02:00]}  Qf5 {[%clk 0:01:33]} 20. Bd4 {[%clk 0:01:44]}  Rfd8 {[%clk 0:01:31]} 21. Rab1 {[%clk 0:01:35]}  Rab8 {[%clk 0:01:26]} 22. h3 {[%clk 0:01:31]}  Qe6 {[%clk 0:01:24]} 23. Rb6 {[%clk 0:01:13]}  Nd5 {[%clk 0:01:22]} 24. Nf4 {[%clk 0:00:41]}  Nxe3+ {[%clk 0:01:17]} 25. Bxe3 {[%clk 0:00:39]}  Qxe3 {[%clk 0:01:17]} 26. Rc1 {[%clk 0:00:14]}  g5 {[%clk 0:00:55]} 27. Nh5 {[%clk 0:00:11]}  Qxd3 {[%clk 0:00:51]} 28. Qa2 {[%clk 0:00:08]}  Qd2+ {[%clk 0:00:48]} 29. Qxd2 {[%clk 0:00:07]}  Rxd2+ {[%clk 0:00:47]} 30. Kf1 {[%clk 0:00:08]}  Kh7 {[%clk 0:00:41]} 31. Rcb1 {[%clk 0:00:07]}  Bxc5 {[%clk 0:00:30]} 32. Rxb7 {[%clk 0:00:04]}  Rxb7 {[%clk 0:00:30]} 33. Rxb7 {[%clk 0:00:04]}  Rf2+ {[%clk 0:00:28]} 34. Ke1 {[%clk 0:00:03]}  Rxf3 {[%clk 0:00:26]} 35. Rc7 {[%clk 0:00:03]}  Rxa3 {[%clk 0:00:22]} 36. Rxf7+ {[%clk 0:00:02]}  Kg6 {[%clk 0:00:21]} 0-1


[Site "https://www.chess.com"]

[Event "Titled Tuesday Blitz January 10 Early 2023"]
[White "Souza, Gustavo Horokoski De"]
[Black "Deev, Andrei"]
[WhiteFideId "2146584"]
[BlackFideId "4102690"]
[WhiteElo "1943"]
[BlackElo "2390"]
[Result "0-1"]
[Round "08"]
[TimeControl "180+2"]
[Date "2023.01.10"]
[WhiteClock "0:00:02"]
[BlackClock "0:01:04"]

1. d4 {[%clk 0:02:55]}  d6 {[%clk 0:03:00]} 2. c4 {[%clk 0:02:54]}  e5 {[%clk 0:02:59]} 3. dxe5 {[%clk 0:02:42]}  dxe5 {[%clk 0:03:00]} 4. Qxd8+ {[%clk 0:02:42]}  Kxd8 {[%clk 0:03:00]} 5. Nf3 {[%clk 0:02:42]}  Nc6 {[%clk 0:02:59]} 6. Nc3 {[%clk 0:02:40]}  Be6 {[%clk 0:02:58]} 7. b3 {[%clk 0:02:30]}  f6 {[%clk 0:02:58]} 8. Bb2 {[%clk 0:02:20]}  Nh6 {[%clk 0:02:57]} 9. h3 {[%clk 0:02:12]}  Nf7 {[%clk 0:02:56]} 10. O-O-O+ {[%clk 0:02:08]}  Kc8 {[%clk 0:02:56]} 11. g3 {[%clk 0:02:07]}  a5 {[%clk 0:02:55]} 12. h4 {[%clk 0:02:07]}  a4 {[%clk 0:02:55]} 13. Nxa4 {[%clk 0:02:04]}  Bxc4 {[%clk 0:02:53]} 14. Nc3 {[%clk 0:01:43]}  Be6 {[%clk 0:02:51]} 15. Kb1 {[%clk 0:01:42]}  Bc5 {[%clk 0:02:44]} 16. e3 {[%clk 0:01:41]}  Nd6 {[%clk 0:02:38]} 17. Bh3 {[%clk 0:01:39]}  Bxh3 {[%clk 0:02:37]} 18. Rxh3 {[%clk 0:01:39]}  Rd8 {[%clk 0:02:32]} 19. Rhh1 {[%clk 0:01:22]}  Bb4 {[%clk 0:02:21]} 20. Nd5 {[%clk 0:01:19]}  Ne4 {[%clk 0:02:17]} 21. Rhf1 {[%clk 0:01:02]}  Rd6 {[%clk 0:01:58]} 22. Nxb4 {[%clk 0:00:45]}  Nxb4 {[%clk 0:01:55]} 23. a3 {[%clk 0:00:44]}  Nd3 {[%clk 0:01:53]} 24. Kc2 {[%clk 0:00:37]}  Ndxf2 {[%clk 0:01:49]} 25. Rxd6 {[%clk 0:00:36]}  cxd6 {[%clk 0:01:49]} 26. Rc1 {[%clk 0:00:25]}  Kd7 {[%clk 0:01:45]} 27. Kb1 {[%clk 0:00:23]}  Ng4 {[%clk 0:01:42]} 28. Re1 {[%clk 0:00:15]}  Ke6 {[%clk 0:01:39]} 29. Ng1 {[%clk 0:00:10]}  Nxg3 {[%clk 0:01:36]} 30. Ne2 {[%clk 0:00:06]}  Nxe2 {[%clk 0:01:36]} 31. Rxe2 {[%clk 0:00:07]}  f5 {[%clk 0:01:34]} 32. Bc1 {[%clk 0:00:06]}  g6 {[%clk 0:01:30]} 33. Rc2 {[%clk 0:00:06]}  Kd7 {[%clk 0:01:26]} 34. b4 {[%clk 0:00:05]}  Nf6 {[%clk 0:01:22]} 35. Rg2 {[%clk 0:00:03]}  Rc8 {[%clk 0:01:08]} 36. Rg1 {[%clk 0:00:02]}  Rc4 {[%clk 0:01:05]} 37. h5 {[%clk 0:00:02]}  Nxh5 {[%clk 0:01:04]} 0-1


[Site "https://www.chess.com"]

[Event "Titled Tuesday Blitz January 10 Early 2023"]
[White "Buraczewski, Rafal"]
[Black "Kaiyrbekov, Rustam"]
[WhiteFideId "1155245"]
[BlackFideId "13702424"]
[WhiteElo "2123"]
[BlackElo "2295"]
[Result "1-0"]
[Round "08"]
[TimeControl "180+2"]
[Date "2023.01.10"]
[WhiteClock "0:00:33"]
[BlackClock "0:00:40"]

1. d4 {[%clk 0:02:36]}  Nf6 {[%clk 0:02:56]} 2. c4 {[%clk 0:02:37]}  e5 {[%clk 0:02:57]} 3. dxe5 {[%clk 0:02:36]}  Ng4 {[%clk 0:02:57]} 4. Nf3 {[%clk 0:02:36]}  Nc6 {[%clk 0:02:58]} 5. Nc3 {[%clk 0:02:36]}  Bb4 {[%clk 0:02:58]} 6. Bd2 {[%clk 0:02:36]}  Ngxe5 {[%clk 0:02:58]} 7. e3 {[%clk 0:02:36]}  O-O {[%clk 0:02:58]} 8. Be2 {[%clk 0:02:35]}  d5 {[%clk 0:02:55]} 9. cxd5 {[%clk 0:02:33]}  Bxc3 {[%clk 0:02:53]} 10. Bxc3 {[%clk 0:02:32]}  Nxf3+ {[%clk 0:02:51]} 11. Bxf3 {[%clk 0:02:17]}  Ne7 {[%clk 0:02:51]} 12. Qd4 {[%clk 0:02:13]}  Nf5 {[%clk 0:02:44]} 13. Qd2 {[%clk 0:02:12]}  Qg5 {[%clk 0:02:38]} 14. e4 {[%clk 0:02:05]}  Qxd2+ {[%clk 0:02:29]} 15. Kxd2 {[%clk 0:02:06]}  Nd6 {[%clk 0:02:28]} 16. Kc2 {[%clk 0:02:02]}  c6 {[%clk 0:02:22]} 17. e5 {[%clk 0:01:59]}  Nb5 {[%clk 0:02:20]} 18. d6 {[%clk 0:01:56]}  Nxc3 {[%clk 0:02:20]} 19. bxc3 {[%clk 0:01:56]}  f6 {[%clk 0:02:19]} 20. exf6 {[%clk 0:01:44]}  Rxf6 {[%clk 0:02:18]} 21. Rad1 {[%clk 0:01:45]}  Bd7 {[%clk 0:02:17]} 22. Rhe1 {[%clk 0:01:44]}  Rd8 {[%clk 0:02:16]} 23. Kb2 {[%clk 0:01:40]}  Bf5 {[%clk 0:02:10]} 24. Re5 {[%clk 0:01:32]}  g6 {[%clk 0:02:05]} 25. g4 {[%clk 0:01:23]}  Bc8 {[%clk 0:02:03]} 26. Be2 {[%clk 0:01:11]}  b5 {[%clk 0:01:38]} 27. d7 {[%clk 0:01:00]}  Rxd7 {[%clk 0:01:28]} 28. Re8+ {[%clk 0:00:46]}  Rf8 {[%clk 0:01:28]} 29. Rxc8 {[%clk 0:00:43]}  Rxd1 {[%clk 0:01:26]} 30. Rxf8+ {[%clk 0:00:42]}  Kxf8 {[%clk 0:01:25]} 31. Bxd1 {[%clk 0:00:43]}  Ke7 {[%clk 0:01:26]} 32. Bf3 {[%clk 0:00:43]}  Kd6 {[%clk 0:01:26]} 33. Kc2 {[%clk 0:00:42]}  c5 {[%clk 0:01:27]} 34. Kd3 {[%clk 0:00:42]}  Ke5 {[%clk 0:01:27]} 35. Ke3 {[%clk 0:00:41]}  a5 {[%clk 0:01:26]} 36. Be2 {[%clk 0:00:42]}  b4 {[%clk 0:01:26]} 37. cxb4 {[%clk 0:00:42]}  cxb4 {[%clk 0:01:25]} 38. Bc4 {[%clk 0:00:42]}  g5 {[%clk 0:01:22]} 39. f4+ {[%clk 0:00:38]}  gxf4+ {[%clk 0:01:22]} 40. Kf3 {[%clk 0:00:38]}  a4 {[%clk 0:01:20]} 41. Bg8 {[%clk 0:00:38]}  h6 {[%clk 0:01:20]} 42. h4 {[%clk 0:00:35]}  Kf6 {[%clk 0:00:48]} 43. Kxf4 {[%clk 0:00:34]}  a3 {[%clk 0:00:47]} 44. Bb3 {[%clk 0:00:32]}  Kg6 {[%clk 0:00:48]} 45. g5 {[%clk 0:00:30]}  hxg5+ {[%clk 0:00:45]} 46. hxg5 {[%clk 0:00:31]}  Kg7 {[%clk 0:00:44]} 47. Kf5 {[%clk 0:00:31]}  Kf8 {[%clk 0:00:43]} 48. Kf6 {[%clk 0:00:31]}  Ke8 {[%clk 0:00:41]} 49. g6 {[%clk 0:00:31]}  Kf8 {[%clk 0:00:41]} 50. g7+ {[%clk 0:00:32]}  Ke8 {[%clk 0:00:41]} 51. g8=Q+ {[%clk 0:00:33]}  Kd7 {[%clk 0:00:42]} 52. Qe6+ {[%clk 0:00:32]}  Kc7 {[%clk 0:00:41]} 53. Ke7 {[%clk 0:00:33]}  Kb7 {[%clk 0:00:42]} 54. Bd5+ {[%clk 0:00:32]}  Ka7 {[%clk 0:00:42]} 55. Qc6 {[%clk 0:00:32]}  b3 {[%clk 0:00:40]} 56. Qb7# {[%clk 0:00:33]} 1-0


[Site "https://www.chess.com"]

[Event "Titled Tuesday Blitz January 10 Early 2023"]
[White "Anton Guijarro, David"]
[Black "Nakamura, Hikaru"]
[WhiteFideId "2285525"]
[BlackFideId "2016192"]
[WhiteElo "2690"]
[BlackElo "2775"]
[Result "0-1"]
[Round "09"]
[TimeControl "180+2"]
[Date "2023.01.10"]
[WhiteClock "0:00:01"]
[BlackClock "0:00:15"]

1. Nf3 {[%clk 0:03:00]}  d5 {[%clk 0:02:56]} 2. c4 {[%clk 0:03:00]}  d4 {[%clk 0:02:55]} 3. b4 {[%clk 0:03:00]}  c5 {[%clk 0:02:51]} 4. a3 {[%clk 0:02:58]}  Nc6 {[%clk 0:02:45]} 5. b5 {[%clk 0:02:52]}  Na5 {[%clk 0:02:45]} 6. e3 {[%clk 0:02:49]}  g6 {[%clk 0:02:30]} 7. exd4 {[%clk 0:02:44]}  Bg7 {[%clk 0:02:30]} 8. d3 {[%clk 0:02:24]}  cxd4 {[%clk 0:02:11]} 9. g3 {[%clk 0:02:16]}  Nf6 {[%clk 0:02:11]} 10. Bg2 {[%clk 0:02:16]}  Nd7 {[%clk 0:02:11]} 11. a4 {[%clk 0:01:53]}  Nc5 {[%clk 0:02:07]} 12. Ba3 {[%clk 0:01:37]}  Nab3 {[%clk 0:02:07]} 13. O-O {[%clk 0:01:37]}  Qc7 {[%clk 0:02:00]} 14. Ra2 {[%clk 0:01:22]}  Bf5 {[%clk 0:02:00]} 15. Ne1 {[%clk 0:01:17]}  O-O {[%clk 0:01:59]} 16. Nd2 {[%clk 0:01:11]}  Nxd2 {[%clk 0:01:39]} 17. Rxd2 {[%clk 0:01:06]}  Rab8 {[%clk 0:01:39]} 18. a5 {[%clk 0:01:00]}  Rfd8 {[%clk 0:01:32]} 19. Nc2 {[%clk 0:00:55]}  Na4 {[%clk 0:01:20]} 20. Bb4 {[%clk 0:00:29]}  e5 {[%clk 0:01:15]} 21. Qa1 {[%clk 0:00:27]}  Nc3 {[%clk 0:01:11]} 22. Bxc3 {[%clk 0:00:22]}  dxc3 {[%clk 0:01:11]} 23. Qxc3 {[%clk 0:00:23]}  Qc5 {[%clk 0:00:41]} 24. Rfd1 {[%clk 0:00:23]}  Bg4 {[%clk 0:00:35]} 25. Re1 {[%clk 0:00:21]}  Bf5 {[%clk 0:00:36]} 26. Be4 {[%clk 0:00:20]}  Be6 {[%clk 0:00:23]} 27. Qb3 {[%clk 0:00:10]}  Rd7 {[%clk 0:00:18]} 28. Red1 {[%clk 0:00:09]}  Rbd8 {[%clk 0:00:18]} 29. Qb4 {[%clk 0:00:08]}  Qxb4 {[%clk 0:00:16]} 30. Nxb4 {[%clk 0:00:09]}  Bxc4 {[%clk 0:00:17]} 31. dxc4 {[%clk 0:00:08]}  Rxd2 {[%clk 0:00:16]} 32. Rxd2 {[%clk 0:00:09]}  Rxd2 {[%clk 0:00:17]} 33. Bxb7 {[%clk 0:00:10]}  Bf8 {[%clk 0:00:17]} 34. Nd5 {[%clk 0:00:09]}  Bc5 {[%clk 0:00:17]} 35. b6 {[%clk 0:00:09]}  Rxf2 {[%clk 0:00:14]} 36. Nc7 {[%clk 0:00:03]}  Ra2+ {[%clk 0:00:14]} 37. Kf1 {[%clk 0:00:03]}  Rxa5 {[%clk 0:00:15]} 38. Na6 {[%clk 0:00:01]}  Bxb6 {[%clk 0:00:15]} 0-1


[Site "https://www.chess.com"]

[Event "Titled Tuesday Blitz January 10 Early 2023"]
[White "Bachmann, Axel"]
[Black "Dubov, Daniil"]
[WhiteFideId "3700488"]
[BlackFideId "24126055"]
[WhiteElo "2604"]
[BlackElo "2708"]
[Result "0-1"]
[Round "09"]
[TimeControl "180+2"]
[Date "2023.01.10"]
[WhiteClock "0:00:36"]
[BlackClock "0:01:49"]

1. e4 {[%clk 0:03:00]}  c5 {[%clk 0:03:00]} 2. Nf3 {[%clk 0:03:00]}  e6 {[%clk 0:03:00]} 3. d4 {[%clk 0:02:59]}  cxd4 {[%clk 0:03:01]} 4. Nxd4 {[%clk 0:03:00]}  Nf6 {[%clk 0:03:01]} 5. Nc3 {[%clk 0:02:59]}  Nc6 {[%clk 0:03:02]} 6. Nxc6 {[%clk 0:02:52]}  bxc6 {[%clk 0:03:02]} 7. Bd3 {[%clk 0:02:53]}  d5 {[%clk 0:03:02]} 8. O-O {[%clk 0:02:49]}  Be7 {[%clk 0:03:02]} 9. e5 {[%clk 0:02:45]}  Nd7 {[%clk 0:03:02]} 10. Qg4 {[%clk 0:02:46]}  Kf8 {[%clk 0:02:58]} 11. Qg3 {[%clk 0:02:43]}  c5 {[%clk 0:02:55]} 12. Na4 {[%clk 0:02:38]}  Bb7 {[%clk 0:02:46]} 13. c4 {[%clk 0:02:36]}  d4 {[%clk 0:02:45]} 14. b3 {[%clk 0:02:32]}  h5 {[%clk 0:02:44]} 15. Re1 {[%clk 0:02:29]}  Qc8 {[%clk 0:02:35]} 16. Bg5 {[%clk 0:02:19]}  Qd8 {[%clk 0:02:27]} 17. Bxe7+ {[%clk 0:02:16]}  Qxe7 {[%clk 0:02:28]} 18. h4 {[%clk 0:02:12]}  g6 {[%clk 0:02:22]} 19. Be4 {[%clk 0:02:11]}  Bxe4 {[%clk 0:02:21]} 20. Rxe4 {[%clk 0:02:12]}  Kg7 {[%clk 0:02:21]} 21. Rae1 {[%clk 0:02:10]}  a5 {[%clk 0:02:20]} 22. Qf3 {[%clk 0:01:59]}  Rab8 {[%clk 0:02:18]} 23. Nb2 {[%clk 0:01:55]}  Nb6 {[%clk 0:02:15]} 24. Nd3 {[%clk 0:01:52]}  a4 {[%clk 0:02:15]} 25. Rf4 {[%clk 0:01:45]}  Nd7 {[%clk 0:02:09]} 26. Rb1 {[%clk 0:01:14]}  Rb6 {[%clk 0:02:07]} 27. Qg3 {[%clk 0:01:02]}  Rhb8 {[%clk 0:02:01]} 28. Nc1 {[%clk 0:00:52]}  Nxe5 {[%clk 0:01:54]} 29. Re4 {[%clk 0:00:36]}  Nxc4 {[%clk 0:01:49]} 0-1


[Site "https://www.chess.com"]

[Event "Titled Tuesday Blitz January 10 Early 2023"]
[White "Salem, A.R. Saleh"]
[Black "Murzin, Volodar"]
[WhiteFideId "9301348"]
[BlackFideId "44155573"]
[WhiteElo "2677"]
[BlackElo "2604"]
[Result "1/2-1/2"]
[Round "09"]
[TimeControl "180+2"]
[Date "2023.01.10"]
[WhiteClock "0:00:04"]
[BlackClock "0:00:08"]

1. d4 {[%clk 0:03:00]}  d5 {[%clk 0:02:59]} 2. c4 {[%clk 0:03:01]}  c6 {[%clk 0:03:00]} 3. Nc3 {[%clk 0:03:02]}  Nf6 {[%clk 0:02:59]} 4. Nf3 {[%clk 0:03:03]}  e6 {[%clk 0:02:58]} 5. g3 {[%clk 0:03:04]}  Nbd7 {[%clk 0:02:57]} 6. Bg2 {[%clk 0:03:04]}  Be7 {[%clk 0:02:57]} 7. O-O {[%clk 0:03:05]}  O-O {[%clk 0:02:58]} 8. Qd3 {[%clk 0:03:06]}  b6 {[%clk 0:02:59]} 9. e4 {[%clk 0:03:06]}  Ba6 {[%clk 0:02:59]} 10. b3 {[%clk 0:03:06]}  dxe4 {[%clk 0:02:57]} 11. Nxe4 {[%clk 0:03:06]}  b5 {[%clk 0:02:57]} 12. Nxf6+ {[%clk 0:02:50]}  Bxf6 {[%clk 0:02:54]} 13. Ba3 {[%clk 0:02:21]}  bxc4 {[%clk 0:02:50]} 14. bxc4 {[%clk 0:02:22]}  Re8 {[%clk 0:02:49]} 15. Rfd1 {[%clk 0:02:14]}  Qa5 {[%clk 0:02:44]} 16. Bd6 {[%clk 0:02:08]}  Rad8 {[%clk 0:02:35]} 17. Qc2 {[%clk 0:02:04]}  Nb6 {[%clk 0:02:26]} 18. c5 {[%clk 0:01:58]}  Nd5 {[%clk 0:02:12]} 19. Ne5 {[%clk 0:01:50]}  Bxe5 {[%clk 0:01:53]} 20. dxe5 {[%clk 0:01:50]}  Rd7 {[%clk 0:01:50]} 21. Rab1 {[%clk 0:01:42]}  Bb5 {[%clk 0:01:45]} 22. Rd4 {[%clk 0:01:39]}  Nc3 {[%clk 0:01:23]} 23. Rxb5 {[%clk 0:01:26]}  Nxb5 {[%clk 0:01:22]} 24. Rh4 {[%clk 0:01:27]}  Qe1+ {[%clk 0:01:22]} 25. Bf1 {[%clk 0:01:27]}  h6 {[%clk 0:01:09]} 26. Re4 {[%clk 0:01:21]}  Qa1 {[%clk 0:00:53]} 27. Kg2 {[%clk 0:01:13]}  Rb7 {[%clk 0:00:47]} 28. Bd3 {[%clk 0:00:43]}  Nc3 {[%clk 0:00:42]} 29. Rc4 {[%clk 0:00:37]}  Nd5 {[%clk 0:00:41]} 30. Qa4 {[%clk 0:00:35]}  Rc8 {[%clk 0:00:13]} 31. Qa6 {[%clk 0:00:27]}  Qb2 {[%clk 0:00:12]} 32. Rc2 {[%clk 0:00:28]}  Qb4 {[%clk 0:00:09]} 33. Re2 {[%clk 0:00:23]}  g6 {[%clk 0:00:08]} 34. h4 {[%clk 0:00:21]}  h5 {[%clk 0:00:08]} 35. a3 {[%clk 0:00:19]}  Qb3 {[%clk 0:00:08]} 36. Bc2 {[%clk 0:00:18]}  Qb5 {[%clk 0:00:05]} 37. Bd3 {[%clk 0:00:18]}  Qxa6 {[%clk 0:00:04]} 38. Bxa6 {[%clk 0:00:19]}  Rcb8 {[%clk 0:00:04]} 39. Bxb7 {[%clk 0:00:17]}  Rxb7 {[%clk 0:00:05]} 40. Re4 {[%clk 0:00:17]}  Rb2 {[%clk 0:00:05]} 41. Ra4 {[%clk 0:00:17]}  Ne3+ {[%clk 0:00:04]} 42. Kf3 {[%clk 0:00:16]}  Ng4 {[%clk 0:00:05]} 43. Rxa7 {[%clk 0:00:15]}  Rxf2+ {[%clk 0:00:06]} 44. Ke4 {[%clk 0:00:16]}  Re2+ {[%clk 0:00:07]} 45. Kf4 {[%clk 0:00:16]}  Rf2+ {[%clk 0:00:07]} 46. Ke4 {[%clk 0:00:16]}  Re2+ {[%clk 0:00:07]} 47. Kd4 {[%clk 0:00:17]}  Rd2+ {[%clk 0:00:07]} 48. Kc3 {[%clk 0:00:17]}  Rg2 {[%clk 0:00:08]} 49. Rc7 {[%clk 0:00:17]}  Ne3 {[%clk 0:00:08]} 50. Rxc6 {[%clk 0:00:17]}  Nd5+ {[%clk 0:00:08]} 51. Kc4 {[%clk 0:00:16]}  Rxg3 {[%clk 0:00:08]} 52. Rc8+ {[%clk 0:00:16]}  Kg7 {[%clk 0:00:08]} 53. c6 {[%clk 0:00:17]}  Rc3+ {[%clk 0:00:08]} 54. Kd4 {[%clk 0:00:17]}  g5 {[%clk 0:00:07]} 55. hxg5 {[%clk 0:00:17]}  h4 {[%clk 0:00:07]} 56. c7 {[%clk 0:00:16]}  h3 {[%clk 0:00:07]} 57. Rb8 {[%clk 0:00:16]}  h2 {[%clk 0:00:06]} 58. Rb1 {[%clk 0:00:15]}  Rc2 {[%clk 0:00:06]} 59. Kd3 {[%clk 0:00:13]}  Rc3+ {[%clk 0:00:05]} 60. Kd2 {[%clk 0:00:13]}  Rc6 {[%clk 0:00:05]} 61. Rh1 {[%clk 0:00:11]}  Nxc7 {[%clk 0:00:05]} 62. Rxh2 {[%clk 0:00:11]}  Nb5 {[%clk 0:00:05]} 63. Bb4 {[%clk 0:00:11]}  Kg6 {[%clk 0:00:06]} 64. Rf2 {[%clk 0:00:09]}  Ra6 {[%clk 0:00:05]} 65. Kd3 {[%clk 0:00:09]}  Ra7 {[%clk 0:00:03]} 66. Bc5 {[%clk 0:00:08]}  Ra4 {[%clk 0:00:03]} 67. Bb4 {[%clk 0:00:08]}  Ra7 {[%clk 0:00:03]} 68. Rb2 {[%clk 0:00:07]}  Nxa3 {[%clk 0:00:03]} 69. Ra2 {[%clk 0:00:07]}  Rd7+ {[%clk 0:00:04]} 70. Ke4 {[%clk 0:00:06]}  Nb5 {[%clk 0:00:03]} 71. Rd2 {[%clk 0:00:05]}  Rxd2 {[%clk 0:00:03]} 72. Bxd2 {[%clk 0:00:06]}  Nc7 {[%clk 0:00:04]} 73. Kd4 {[%clk 0:00:06]}  Nd5 {[%clk 0:00:05]} 74. Ke4 {[%clk 0:00:06]}  Ne7 {[%clk 0:00:05]} 75. Bc1 {[%clk 0:00:07]}  Kh5 {[%clk 0:00:05]} 76. Bd2 {[%clk 0:00:07]}  Ng6 {[%clk 0:00:06]} 77. Bc1 {[%clk 0:00:06]}  Kg4 {[%clk 0:00:07]} 78. Bd2 {[%clk 0:00:07]}  Nh4 {[%clk 0:00:07]} 79. Bc1 {[%clk 0:00:07]}  Nf3 {[%clk 0:00:08]} 80. Be3 {[%clk 0:00:03]}  Nxg5+ {[%clk 0:00:08]} 81. Kd4 {[%clk 0:00:04]}  Kf5 {[%clk 0:00:08]} 82. Bc1 {[%clk 0:00:03]}  Nf3+ {[%clk 0:00:09]} 83. Ke3 {[%clk 0:00:04]}  Nxe5 {[%clk 0:00:09]} 84. Ke2 {[%clk 0:00:04]}  Ke4 {[%clk 0:00:09]} 85. Bb2 {[%clk 0:00:03]}  f5 {[%clk 0:00:10]} 86. Ba1 {[%clk 0:00:03]}  f4 {[%clk 0:00:10]} 87. Bb2 {[%clk 0:00:04]}  f3+ {[%clk 0:00:08]} 88. Kf1 {[%clk 0:00:04]} 1/2-1/2


[Site "https://www.chess.com"]

[Event "Titled Tuesday Blitz January 10 Early 2023"]
[White "Sarana, Alexey"]
[Black "Svane, Rasmus"]
[WhiteFideId "24133795"]
[BlackFideId "4657101"]
[WhiteElo "2685"]
[BlackElo "2623"]
[Result "1-0"]
[Round "09"]
[TimeControl "180+2"]
[Date "2023.01.10"]
[WhiteClock "0:00:39"]
[BlackClock "0:00:04"]

1. c4 {[%clk 0:03:00]}  Nf6 {[%clk 0:01:02]} 2. Nc3 {[%clk 0:03:00]}  e5 {[%clk 0:01:01]} 3. Nf3 {[%clk 0:03:00]}  Nc6 {[%clk 0:01:01]} 4. g3 {[%clk 0:03:01]}  d5 {[%clk 0:01:02]} 5. cxd5 {[%clk 0:03:02]}  Nxd5 {[%clk 0:01:03]} 6. Bg2 {[%clk 0:03:02]}  Bc5 {[%clk 0:01:03]} 7. O-O {[%clk 0:03:03]}  O-O {[%clk 0:01:02]} 8. Qc2 {[%clk 0:03:04]}  Nf6 {[%clk 0:00:54]} 9. a3 {[%clk 0:03:02]}  a5 {[%clk 0:00:53]} 10. e3 {[%clk 0:03:00]}  h6 {[%clk 0:00:51]} 11. h3 {[%clk 0:02:57]}  Be6 {[%clk 0:00:49]} 12. Rd1 {[%clk 0:02:53]}  Bd6 {[%clk 0:00:46]} 13. d4 {[%clk 0:02:40]}  exd4 {[%clk 0:00:47]} 14. Nxd4 {[%clk 0:02:40]}  Nxd4 {[%clk 0:00:48]} 15. Rxd4 {[%clk 0:02:40]}  Qc8 {[%clk 0:00:48]} 16. Kh2 {[%clk 0:02:28]}  Be5 {[%clk 0:00:49]} 17. Rd1 {[%clk 0:02:16]}  c6 {[%clk 0:00:45]} 18. f4 {[%clk 0:02:15]}  Bxc3 {[%clk 0:00:45]} 19. bxc3 {[%clk 0:02:16]}  a4 {[%clk 0:00:42]} 20. Re1 {[%clk 0:02:16]}  Bb3 {[%clk 0:00:41]} 21. Qf2 {[%clk 0:02:15]}  Nd5 {[%clk 0:00:35]} 22. e4 {[%clk 0:02:10]}  Nxc3 {[%clk 0:00:35]} 23. Bb2 {[%clk 0:02:11]}  Nb5 {[%clk 0:00:35]} 24. f5 {[%clk 0:02:11]}  f6 {[%clk 0:00:34]} 25. e5 {[%clk 0:02:11]}  fxe5 {[%clk 0:00:35]} 26. Rxe5 {[%clk 0:02:11]}  Qd7 {[%clk 0:00:31]} 27. Rae1 {[%clk 0:01:54]}  Rae8 {[%clk 0:00:31]} 28. Qf4 {[%clk 0:01:52]}  Rxe5 {[%clk 0:00:30]} 29. Rxe5 {[%clk 0:01:53]}  Re8 {[%clk 0:00:26]} 30. f6 {[%clk 0:01:53]}  g5 {[%clk 0:00:17]} 31. Qe4 {[%clk 0:01:24]}  Rxe5 {[%clk 0:00:15]} 32. Qg6+ {[%clk 0:01:24]}  Kf8 {[%clk 0:00:15]} 33. Bxe5 {[%clk 0:01:21]}  Bd5 {[%clk 0:00:15]} 34. Qxh6+ {[%clk 0:01:16]}  Kf7 {[%clk 0:00:15]} 35. Qh5+ {[%clk 0:01:12]}  Kf8 {[%clk 0:00:09]} 36. Qh6+ {[%clk 0:00:37]}  Kf7 {[%clk 0:00:07]} 37. Qxg5 {[%clk 0:00:38]}  Bxg2 {[%clk 0:00:07]} 38. Qg7+ {[%clk 0:00:38]}  Ke6 {[%clk 0:00:05]} 39. Qg4+ {[%clk 0:00:38]}  Kxe5 {[%clk 0:00:05]} 40. Qxd7 {[%clk 0:00:39]}  Bxh3 {[%clk 0:00:02]} 41. Kxh3 {[%clk 0:00:37]}  Nc3 {[%clk 0:00:03]} 42. f7 {[%clk 0:00:38]}  Ne4 {[%clk 0:00:03]} 43. f8=Q {[%clk 0:00:38]}  Nf2+ {[%clk 0:00:04]} 44. Kg2 {[%clk 0:00:39]} 1-0


[Site "https://www.chess.com"]